bitfinex-derivatives/quotes_SOLF0:USTF0_20251020
["timestamp","ask_amount","ask_price","bid_price","bid_amount"]
[1760986195664,7.6694,188.28,188.22,9.09609833]
[1760986195963,2.89,188.27,188.23,11.96609833]
[1760986196155,2.89,188.27,188.24,9.09609833]
[1760986196360,2.89,188.27,188.25,9.09609833]
[1760986196560,2.89,188.27,188.23,2.87]
[1760986196756,2.89,188.27,188.24,4.0108754]
[1760986196964,2.89,188.27,188.25,4.0108754]
[1760986197265,2.89,188.27,188.26,4.0108754]
[1760986197458,2.91,188.29,188.26,4.0108754]
[1760986197658,2.91,188.29,188.23,2.87]
[1760986197855,7.689,188.29,188.25,2.8]
[1760986198059,2.91,188.28,188.22,2.8]
[1760986198260,2.91,188.28,188.23,4.01026238]
[1760986198463,2.91,188.28,188.24,4.01026238]
[1760986198660,4.7793,188.28,188.25,6.81026238]
[1760986198865,4.7793,188.28,188.26,4.01026238]
[1760986199059,4.7793,188.28,188.25,2.8]
[1760986199258,2.91,188.29,188.26,4.0098231]
[1760986199467,2.91,188.29,188.25,2.8]
[1760986199761,7.6891,188.29,188.26,4.00959433]
[1760986199968,2.91,188.28,188.25,2.8]
[1760986200169,4.7791,188.29,188.27,2.8]
[1760986200669,4.7791,188.29,188.21,2.8]
[1760986200865,4.7791,188.29,188.23,2.8]
[1760986201066,4.7791,188.29,188.25,2.8]
[1760986201263,4.7791,188.29,188.26,6.81029267]
[1760986201462,4.7791,188.29,188.26,2.8]
[1760986201669,33.7085,188.31,188.26,2.8]
[1760986201866,30.7985,188.31,188.28,2.8]
[1760986202059,4.778,188.33,188.29,4.00866889]
[1760986202266,4.778,188.33,188.31,2.8]
[1760986202566,4.778,188.33,188.24,9.42969754]
[1760986202773,4.778,188.33,188.26,2.8]
[1760986203071,4.778,188.33,188.28,2.8]
[1760986203370,4.7775,188.35,188.3,2.8]
[1760986203569,4.7775,188.35,188.32,2.8]
[1760986203764,4.7775,188.35,188.33,9.14793967]
[1760986203960,4.7775,188.35,188.32,2.8]
[1760986204161,2.91,188.36,188.33,4.0792625]
[1760986204361,2.91,188.36,188.3,2.8]
[1760986204562,2.91,188.36,188.31,11.93770894]
[1760986204762,2.91,188.36,188.32,9.13770894]
[1760986205067,7.6876,188.34,188.27,2.8]
[1760986205264,4.7776,188.34,188.29,2.8]
[1760986205566,6.11743436,188.37,188.31,2.8]
[1760986205772,4.7772,188.36,188.33,2.8]
[1760986206665,7.6872,188.36,188.27,2.8]
[1760986206861,7.6872,188.36,188.29,2.8]
[1760986206862,4.7775,188.35,188.29,2.8]
[1760986207172,7.6875,188.35,188.31,2.8]
[1760986207371,7.6875,188.35,188.32,9.13850194]
[1760986207574,7.6875,188.35,188.31,2.8]
[1760986207775,7.6875,188.35,188.32,9.13401295]
[1760986208079,640.5221,188.72,188.35,2.8]
[1760986208080,2.91,188.5,188.35,2.8]
[1760986208261,2.91,188.5,188.41,3.20743436]
[1760986208467,3.20743436,188.54,188.43,2.8]
[1760986208468,4.7731,188.52,188.43,2.8]
[1760986208774,2.91,188.58,188.49,2.8]
[1760986208971,2.91,188.58,188.5,11.93401297]
[1760986209173,2.91,188.55,188.45,2.8]
[1760986209368,2.91,188.55,188.41,3.20743436]
[1760986209369,2.91,188.55,188.41,6.00743436]
[1760986209568,7.6844,188.47,188.42,4.05152113]
[1760986209875,7.6844,188.47,188.41,2.8]
[1760986210079,7.6844,188.47,188.43,2.8]
[1760986210370,4.7744,188.47,188.43,2.8]
[1760986211576,7.6844,188.47,188.37,2.8]
[1760986211777,7.6844,188.47,188.39,2.8]
[1760986211971,7.6844,188.47,188.4,4.0434899]
[1760986212565,7.98123436,188.5,188.41,2.8]
[1760986212780,10.89123436,188.5,188.41,2.8]
[1760986213174,4.7741,188.48,188.41,2.8]
[1760986213666,7.6841,188.48,188.41,2.8]
[1760986214176,2.91,188.45,188.41,2.8]
[1760986214378,2.91,188.45,188.33,2.8]
[1760986214578,2.91,188.45,188.35,2.8]
[1760986214773,2.91,188.45,188.37,2.8]
[1760986214975,2.91,188.45,188.38,4.03502309]
[1760986215173,4.7746,188.46,188.39,2.88]
[1760986215370,7.6152,188.44,188.39,2.88]
[1760986215571,2.84,188.43,188.39,2.88]
[1760986216174,4.7752,188.44,188.39,2.88]
[1760986217281,2.84,188.43,188.39,2.88]
[1760986220680,7.6156,188.43,188.35,2.88]
[1760986220877,7.6156,188.43,188.37,2.88]
[1760986221578,2.84,188.41,188.32,2.88]
[1760986221780,2.84,188.41,188.33,6.91776894]
[1760986221971,2.84,188.41,188.34,4.03776894]
[1760986222175,2.84,188.41,188.33,2.88]
[1760986222377,2.84,188.41,188.34,6.91792833]
[1760986222581,2.84,188.41,188.34,2.88]
[1760986223084,4.7761,188.4,188.34,2.88]
[1760986224477,4.7756,188.42,188.34,2.88]
[1760986224678,4.7756,188.42,188.36,2.88]
[1760986226186,7.6156,188.42,188.36,2.88]
[1760986226490,2.84,188.41,188.29,62.0]
[1760986226791,2.84,188.35,188.26,2.88]
[1760986226984,2.84,188.35,188.28,2.88]
[1760986227285,2.84,188.34,188.28,2.88]
[1760986227797,7.698,188.33,188.24,7.98743436]
[1760986228091,7.698,188.33,188.25,11.88647986]
[1760986228288,7.698,188.33,188.26,8.95647986]
[1760986228585,7.698,188.33,188.27,4.04456176]
[1760986228886,7.698,188.33,188.25,2.93]
[1760986228887,7.698,188.33,188.28,4.04456176]
[1760986229087,7.698,188.33,188.26,2.05113413]
[1760986229281,7.698,188.33,188.27,4.04813403]
[1760986229484,7.698,188.33,188.28,4.04813403]
[1760986229687,7.698,188.33,188.26,2.05113413]
[1760986229889,7.698,188.33,188.27,4.04992599]
[1760986230091,7.698,188.33,188.28,4.04992599]
[1760986230290,2.92,188.32,188.26,4.98113413]
[1760986230589,2.92,188.32,188.27,11.90270691]
[1760986230778,2.92,188.32,188.28,4.05184519]
[1760986230779,4.7785,188.31,188.28,4.05184519]
[1760986230980,2.92,188.3,188.26,2.05113413]
[1760986231186,2.92,188.3,188.27,4.05334348]
[1760986231385,2.92,188.3,188.26,2.05113413]
[1760986231696,2.92,188.3,188.27,4.05463317]
[1760986231882,2.92,188.3,188.24,2.05113413]
[1760986232084,2.92,188.42,188.26,2.05113413]
[1760986232385,2.92,188.35,188.29,2.05113413]
[1760986232589,7.6975,188.35,188.29,2.05113413]
[1760986232786,7.6975,188.35,188.31,2.05113413]
[1760986232986,2.92,188.35,188.31,4.98113413]
[1760986233389,2.92,188.35,188.31,2.05113413]
[1760986234391,2.92,188.34,188.31,2.05113413]
[1760986234987,4.7778,188.34,188.29,2.05113413]
[1760986235187,2.92,188.33,188.27,2.05113413]
[1760986235388,2.92,188.33,188.28,4.05959875]
[1760986235587,2.92,188.33,188.27,2.05113413]
[1760986235795,2.92,188.33,188.28,4.06121634]
[1760986235982,4.7783,188.32,188.27,2.05113413]
[1760986236182,2.92,188.31,188.23,2.05113413]
[1760986236380,2.92,188.31,188.24,8.9970317]
[1760986236597,2.92,188.3,188.25,4.06249672]
[1760986236896,2.92,188.27,188.26,4.06249672]
[1760986237594,4.7792,188.28,188.26,4.06249672]
[1760986237791,4.7792,188.28,188.23,4.98113413]
[1760986237997,7.6992,188.28,188.24,11.92970758]
[1760986238185,7.6992,188.28,188.25,8.99970758]
[1760986238381,7.6992,188.28,188.24,2.93]
[1760986238588,7.6992,188.28,188.23,2.05113413]
[1760986238589,2.92,188.27,188.25,4.0650892]
[1760986238792,2.92,188.27,188.23,2.05113413]
[1760986239097,2.92,188.27,188.24,4.06561149]
[1760986239290,2.92,188.26,188.21,2.05113413]
[1760986239496,2.92,188.26,188.22,4.06603151]
[1760986239794,4.7796,188.27,188.21,4.98113413]
[1760986239795,4.7796,188.27,188.23,6.99603151]
[1760986239982,7.6996,188.27,188.24,4.06603151]
[1760986240185,7.6996,188.27,188.23,4.98113413]
[1760986240489,2.92,188.26,188.24,4.06616226]
[1760986240684,2.92,188.26,188.23,2.05113413]
[1760986240884,2.92,188.26,188.22,2.05113413]
[1760986241286,2.92,188.26,188.22,4.98113413]
[1760986242695,2.92,188.26,188.22,2.05113413]
[1760986243087,4.7796,188.27,188.22,2.05113413]
[1760986243286,7.6996,188.27,188.23,2.93]
[1760986243593,2.92,188.26,188.22,2.05113413]
[1760986244095,2.92,188.25,188.22,2.05113413]
[1760986244294,2.92,188.25,188.2,2.05113413]
[1760986244988,2.92,188.25,188.15,4.90213614]
[1760986245192,2.92,188.22,188.18,2.05113413]
[1760986245391,44.5,188.21,188.18,2.05113413]
[1760986245783,47.42,188.21,188.18,2.05113413]
[1760986245990,47.42,188.21,188.16,2.93]
[1760986246298,47.42,188.21,188.17,6.11716573]
[1760986246593,47.42,188.21,188.18,4.0660316]
[1760986246799,47.42,188.21,188.17,2.05113413]
[1760986246985,47.42,188.21,188.18,4.06507012]
[1760986247287,44.5,188.2,188.18,2.93]
[1760986247485,44.5,188.2,188.19,2.05113413]
[1760986247686,4.7808,188.22,188.19,2.05113413]
[1760986247886,14.98,188.21,188.2,2.93]
[1760986248795,14.98,188.21,188.19,2.05113413]
[1760986249097,34.62,188.22,188.2,2.93]
[1760986249501,44.5,188.22,188.2,2.93]
[1760986249695,4.7802,188.24,188.19,2.05113413]
[1760986249998,44.5,188.22,188.19,2.05113413]
[1760986250194,47.42,188.22,188.19,2.05113413]
[1760986250592,44.5,188.22,188.2,2.93]
[1760986251194,44.5,188.22,188.17,2.93]
[1760986251394,44.5,188.22,188.18,4.98113413]
[1760986251395,47.42,188.22,188.18,4.98113413]
[1760986252692,2.92,188.21,188.16,6.83313413]
[1760986252896,2.92,188.21,188.16,2.05113413]
[1760986253101,2.92,188.21,188.14,2.05113413]
[1760986253994,4.7812,188.2,188.14,2.05113413]
[1760986254199,4.7812,188.2,188.14,4.98113413]
[1760986254587,7.7012,188.2,188.16,2.05113413]
[1760986255002,7.7012,188.2,188.14,2.93]
[1760986255298,7.7012,188.2,188.16,2.05113413]
[1760986256201,7.7012,188.2,188.16,4.98113413]
[1760986258890,2.92,188.2,188.16,4.98113413]
[1760986260897,7.7206,188.23,188.18,2.05113413]
[1760986261104,26.84,188.22,188.19,2.71]
[1760986261306,2.94,188.22,188.19,2.71]
[1760986261800,28.78,188.21,188.18,2.05113413]
[1760986262106,2.94,188.2,188.16,4.76113413]
[1760986262298,44.44,188.19,188.16,4.76113413]
[1760986262495,47.38,188.19,188.16,2.71]
[1760986262696,2.94,188.18,188.15,2.05113413]
[1760986263506,2.94,188.18,188.15,4.76113413]
[1760986263691,2.94,188.18,188.13,2.05113413]
[1760986263898,2.94,188.18,188.14,7.64251834]
[1760986264099,2.94,188.18,188.15,2.05113413]
[1760986265106,7.7218,188.18,188.15,2.05113413]
[1760986265498,7.7218,188.18,188.16,4.93759351]
[1760986265697,7.7218,188.18,188.14,2.71]
[1760986265900,7.7218,188.18,188.15,4.93760078]
[1760986266102,7.7218,188.18,188.16,4.93760078]
[1760986266300,7.7218,188.18,188.17,4.93760078]
[1760986266899,2.94,188.18,188.17,9.23221823]
[1760986269010,26.8,188.18,188.17,4.29461745]
[1760986269204,26.8,188.18,188.17,9.2386692]
[1760986269412,2.94,188.18,188.17,9.2386692]
[1760986269605,23.86,188.18,188.17,11.9486692]
[1760986269908,23.86,188.18,188.17,9.2386692]
[1760986270406,7.721,188.21,188.18,2.71]
[1760986270407,2.94,188.21,188.18,2.71]
[1760986270608,19.32,188.2,188.19,9.2386692]
[1760986271713,22.26,188.2,188.19,9.2386692]
[1760986274597,2.94,188.22,188.19,9.2386692]
[1760986274802,44.4,188.21,188.2,9.2386692]
[1760986275611,47.12,188.21,188.2,4.29461745]
[1760986279214,47.12,188.21,188.2,8.28507826]
[1760986280112,47.1,188.21,188.2,8.28507826]
[1760986280315,47.1,188.21,188.2,13.23998934]
[1760986281404,47.1,188.21,188.2,8.28507826]
[1760986282310,47.1,188.21,188.2,13.24629578]
[1760986282515,47.1,188.21,188.2,8.28507826]
[1760986283119,47.1,188.21,188.2,3.99046081]
[1760986283716,2.72,188.2,188.15,4.90996453]
[1760986283919,2.72,188.18,188.16,8.96687141]
[1760986284114,44.36,188.17,188.14,2.74]
[1760986284315,44.36,188.17,188.15,11.70857152]
[1760986284512,44.36,188.17,188.16,8.96857152]
[1760986284719,7.5012,188.2,188.17,2.74]
[1760986285032,31.96,188.19,188.18,8.96857152]
[1760986285324,31.96,188.19,188.18,13.24738968]
[1760986285819,34.68,188.19,188.18,13.24738968]
[1760986286217,34.68,188.19,188.18,8.96857152]
[1760986287832,34.68,188.19,188.11,9.40661937]
[1760986287833,2.89,188.18,188.13,4.90996453]
[1760986288021,2.89,188.17,188.13,4.90996453]
[1760986288422,2.89,188.17,188.13,7.76996453]
[1760986289123,7.672,188.17,188.13,7.76996453]
[1760986290126,4.782,188.17,188.13,7.76996453]
[1760986290326,2.89,188.16,188.13,7.76996453]
[1760986290521,2.89,188.15,188.13,4.90996453]
[1760986290827,4.7822,188.16,188.13,4.90996453]
[1760986291325,2.89,188.15,188.13,4.90996453]
[1760986292424,2.89,188.15,188.12,4.90996453]
[1760986292920,2.89,188.15,188.13,4.90996453]
[1760986293922,2.89,188.15,188.13,4.94259593]
[1760986294123,2.89,188.15,188.12,4.94259593]
[1760986294324,2.89,188.15,188.13,4.94259593]
[1760986294726,7.6717,188.18,188.14,2.86]
[1760986294923,47.23,188.17,188.14,2.86]
[1760986295725,2.89,188.17,188.14,2.86]
[1760986295925,44.34,188.16,188.14,2.86]
[1760986296428,2.89,188.17,188.14,2.86]
[1760986296726,2.89,188.21,188.17,2.86]
[1760986296932,28.6,188.21,188.19,2.86]
[1760986297124,2.89,188.2,188.18,4.94259593]
[1760986297327,2.89,188.2,188.16,4.94259593]
[1760986298125,33.381,188.21,188.17,2.86]
[1760986298323,28.6,188.21,188.18,2.86]
[1760986298528,28.6,188.21,188.18,7.80259593]
[1760986299025,31.49,188.21,188.18,7.80259593]
[1760986299423,31.49,188.21,188.18,2.86]
[1760986299826,31.49,188.21,188.19,8.96897892]
[1760986300132,31.49,188.21,188.2,8.96897892]
[1760986303033,30.79,188.21,188.2,8.96897892]
[1760986306831,30.79,188.21,188.2,4.04100989]
[1760986307035,47.19,188.21,188.2,4.04100989]
[1760986311240,2.89,188.19,188.15,4.94259593]
[1760986311441,2.89,188.19,188.16,8.91225363]
[1760986311637,2.89,188.18,188.17,8.91225363]
[1760986312241,2.89,188.18,188.17,4.92149819]
[1760986313244,2.89,188.18,188.17,8.92353343]
[1760986314239,2.89,188.18,188.17,4.92149819]
[1760986315342,42.23,188.18,188.17,4.92149819]
[1760986316835,39.34,188.18,188.17,4.92149819]
[1760986318142,42.17,188.18,188.17,4.92149819]
[1760986318942,2.83,188.18,188.17,4.92149819]
[1760986319144,42.09,188.18,188.17,4.92149819]
[1760986319443,42.09,188.18,188.14,7.80259593]
[1760986319444,46.8717,188.18,188.14,7.80259593]
[1760986319643,2.83,188.17,188.14,7.80259593]
[1760986319845,40.6,188.16,188.14,7.80259593]
[1760986321044,40.6,188.16,188.15,2.74]
[1760986321537,44.24,188.16,188.15,7.68259593]
[1760986322138,3.21018406,188.22,188.16,2.74]
[1760986322139,7.6116,188.19,188.16,2.74]
[1760986322345,47.07,188.18,188.17,4.00327299]
[1760986324447,51.8517,188.18,188.14,7.68259593]
[1760986324649,2.83,188.17,188.14,7.68259593]
[1760986325242,2.83,188.17,188.12,6.54661937]
[1760986325243,2.83,188.16,188.13,4.94259593]
[1760986325442,3.21018406,188.19,188.12,4.94259593]
[1760986325443,32.03,188.15,188.12,4.94259593]
[1760986325648,29.2,188.15,188.13,2.74]
[1760986326749,2.83,188.14,188.11,4.94259593]
[1760986326939,2.83,188.12,188.01,12.59362819]
[1760986327141,3.21018406,188.1,188.02,2.74]
[1760986327451,2.83,188.08,188.02,2.74]
[1760986328643,7.6144,188.08,188.02,2.74]
[1760986329755,2.83,188.07,188.02,2.74]
[1760986329947,3.21018406,188.1,188.02,2.74]
[1760986329948,44.26,188.06,188.02,2.74]
[1760986330146,2.83,188.05,188.02,2.74]
[1760986330748,49.0449,188.06,188.02,2.74]
[1760986332352,44.26,188.06,188.02,2.74]
[1760986333057,44.26,188.06,187.9,12.78738406]
[1760986333058,2.83,188.05,187.97,2.74]
[1760986333256,47.09,188.04,187.97,2.74]
[1760986335162,51.8754,188.04,187.97,2.74]
[1760986335561,50.14018406,188.04,187.97,2.74]
[1760986335765,2.67,188.0,187.93,2.81]
[1760986335958,46.93,187.99,187.93,2.81]
[1760986336360,51.7167,187.99,187.93,2.81]
[1760986337169,51.7167,187.99,187.94,4.90833328]
[1760986337369,51.7167,187.99,187.95,7.71833328]
[1760986337555,7.4567,187.99,187.96,4.90833328]
[1760986337755,44.26,187.98,187.95,2.81]
[1760986337964,51.7169,187.98,187.92,2.81]
[1760986338167,2.67,187.97,187.93,4.90836801]
[1760986338357,2.67,187.97,187.92,2.81]
[1760986338557,2.67,187.96,187.92,2.81]
[1760986339067,44.26,187.98,187.92,2.81]
[1760986339660,2.67,187.97,187.92,2.81]
[1760986340765,7.4571,187.97,187.93,7.9605759]
[1760986340965,7.4571,187.97,187.93,2.81]
[1760986341363,4.7871,187.97,187.93,2.81]
[1760986341566,2.67,187.96,187.93,2.81]
[1760986342064,3.21018406,187.99,187.93,2.81]
[1760986342268,44.28,187.98,187.95,2.81]
[1760986342472,46.95,187.98,187.95,2.81]
[1760986343871,46.95,187.98,187.93,4.7879]
[1760986344167,46.95,187.98,187.94,5.14276661]
[1760986344168,2.67,187.97,187.94,5.14276661]
[1760986344371,2.67,187.97,187.93,2.81]
[1760986344571,2.67,187.97,187.94,5.14133179]
[1760986344760,2.67,187.97,187.93,2.81]
[1760986344959,2.67,187.97,187.94,5.14133179]
[1760986345160,2.67,187.97,187.93,2.81]
[1760986345362,2.67,187.97,187.94,5.13982855]
[1760986345569,5.88018406,187.99,187.95,7.94982855]
[1760986345766,4.7858,188.02,187.95,2.81]
[1760986345767,2.67,188.02,187.95,2.81]
[1760986345970,44.28,188.01,187.96,5.13965599]
[1760986346177,44.28,188.01,187.89,3.21018406]
[1760986346178,44.28,188.0,187.98,2.81]
[1760986349592,44.28,188.0,187.96,7.5272]
[1760986349792,47.13,188.0,187.97,7.87998411]
[1760986349999,47.13,188.0,187.98,5.13998411]
[1760986350000,44.28,187.99,187.98,5.13998411]
[1760986354499,46.33788992,187.99,187.98,5.13998411]
[1760986355694,46.33788992,187.99,187.96,4.7872]
[1760986355695,2.85,187.98,187.91,2.74]
[1760986355895,2.05788992,187.94,187.91,2.74]
[1760986357205,2.05788992,187.94,187.92,7.5282]
[1760986358205,44.28,187.95,187.92,7.5282]
[1760986358408,46.33788992,187.95,187.92,7.5282]
[1760986359202,46.33788992,187.95,187.94,2.74]
[1760986359399,44.28,187.95,187.94,2.74]
[1760986359599,44.28,187.96,187.94,2.74]
[1760986359904,2.05788992,187.97,187.94,7.5275]
[1760986360101,25.74,187.98,187.95,2.74]
[1760986360901,46.33788992,187.99,187.95,2.74]
[1760986361202,46.33788992,187.99,187.95,7.5274]
[1760986361605,49.18788992,187.99,187.96,2.74]
[1760986362008,4.90788992,187.99,187.96,2.74]
[1760986362308,49.18788992,187.99,187.96,2.74]
[1760986362610,2.05788992,187.99,187.96,7.5271]
[1760986362812,46.33788992,187.99,187.97,2.74]
[1760986363998,46.33788992,187.99,187.97,7.5269]
[1760986364200,2.05788992,187.99,187.98,2.74]
[1760986365105,2.05788992,187.99,187.97,4.7869]
[1760986365908,2.05788992,187.99,187.97,7.5269]
[1760986366115,2.05788992,187.99,187.98,2.74]
[1760986366409,46.33788992,188.01,187.98,7.5265]
[1760986367006,49.18788992,188.01,187.98,7.5265]
[1760986367209,2.05788992,187.99,187.98,7.5265]
[1760986367710,49.18788992,188.01,187.98,12.64244174]
[1760986367917,49.18788992,188.01,187.99,5.11594174]
[1760986368215,49.18788992,188.01,188.0,5.11594174]
[1760986370814,49.18788992,188.01,187.98,7.5265]
[1760986371018,2.05788992,187.99,187.98,7.5265]
[1760986371915,2.85,188.03,188.0,2.74]
[1760986372117,2.05788992,188.01,188.0,2.74]
[1760986372316,2.05788992,188.01,188.0,7.869367]
[1760986372813,2.05788992,188.01,188.0,12.17061544]
[1760986373013,2.05788992,188.01,188.0,16.2251631]
[1760986373412,2.05788992,188.01,188.0,13.4851631]
[1760986374322,4.90788992,188.01,188.0,13.4851631]
[1760986375712,2.05788992,188.01,188.0,13.4851631]
[1760986376622,2.85,188.03,188.0,16.2251631]
[1760986376810,2.85,188.03,188.01,13.4851631]
[1760986377014,2.85,188.03,188.02,13.4851631]
[1760986380526,2.85,188.03,188.02,8.3557961]
[1760986380723,4.785,188.05,188.02,13.30271317]
[1760986380914,2.75,188.08,188.03,8.36724536]
[1760986381120,2.75,188.08,188.05,2.84]
[1760986381319,49.08788992,188.08,188.06,8.36724536]
[1760986381519,49.08788992,188.08,188.07,8.36724536]
[1760986381920,49.08788992,188.08,188.07,4.06026359]
[1760986382120,49.08788992,188.08,188.07,9.33604318]
[1760986382922,49.08788992,188.08,188.07,13.6903992]
[1760986383125,4.80788992,188.08,188.07,13.6903992]
[1760986383328,20.12788992,188.08,188.07,13.6903992]
[1760986383631,4.80788992,188.08,188.07,13.6903992]
[1760986384724,2.05788992,188.1,188.08,2.84]
[1760986384928,2.05788992,188.1,188.09,9.33604318]
[1760986387729,2.05788992,188.13,188.1,2.84]
[1760986387930,2.05788992,188.14,188.12,2.84]
[1760986388229,4.80788992,188.14,188.13,9.33604318]
[1760986388621,2.05788992,188.14,188.13,9.33604318]
[1760986388823,4.80788992,188.14,188.13,9.33604318]
[1760986389337,49.06788992,188.14,188.13,4.06026359]
[1760986390333,47.01,188.14,188.13,4.06026359]
[1760986390534,44.26,188.14,188.13,4.06026359]
[1760986391031,47.01,188.14,188.13,4.06026359]
[1760986391736,2.75,188.14,188.13,4.06026359]
[1760986391939,17.99,188.14,188.13,4.06026359]
[1760986392239,17.99,188.14,188.06,6.56155823]
[1760986392240,2.75,188.11,188.08,4.96008403]
[1760986392431,2.75,188.1,188.09,4.1974992]
[1760986392735,2.75,188.1,188.04,7.80008403]
[1760986392934,20.96,188.1,188.05,12.10611634]
[1760986393133,2.05788992,188.11,188.07,2.84]
[1760986393134,4.7836,188.11,188.07,2.84]
[1760986393431,7.5336,188.11,188.08,7.03794723]
[1760986393632,7.5336,188.11,188.09,4.19742157]
[1760986393934,51.7931,188.13,188.1,4.19742157]
[1760986394145,7.5331,188.13,188.11,4.19742157]
[1760986394329,7.5331,188.13,188.08,2.84]
[1760986394529,37.9931,188.13,188.09,12.10260415]
[1760986394831,37.9931,188.13,188.1,4.19635172]
[1760986395137,37.9931,188.13,188.11,4.19635172]
[1760986395337,7.5331,188.13,188.09,2.84]
[1760986395538,37.9931,188.13,188.1,4.19562344]
[1760986395741,37.9931,188.13,188.11,4.19562344]
[1760986395941,4.91788992,188.12,188.06,7.73008403]
[1760986396142,4.91788992,188.12,188.08,2.77]
[1760986396332,4.91788992,188.12,188.09,9.26096718]
[1760986396533,4.91788992,188.12,188.1,4.19562365]
[1760986396733,4.91788992,188.12,188.11,4.19562365]
[1760986397344,4.91788992,188.12,188.08,2.77]
[1760986397533,4.91788992,188.12,188.09,9.25569907]
[1760986397832,4.91788992,188.12,188.1,4.19445543]
[1760986398032,2.05788992,188.12,188.08,2.77]
[1760986398233,2.86,188.11,188.09,9.25555346]
[1760986398533,2.86,188.11,188.1,4.19430982]
[1760986398935,4.91788992,188.12,188.1,4.19430982]
[1760986399135,4.91788992,188.12,188.08,2.77]
[1760986399336,4.91788992,188.12,188.09,9.25440847]
[1760986399636,4.91788992,188.12,188.1,4.19387971]
[1760986399836,4.91788992,188.12,188.08,2.77]
[1760986400042,4.91788992,188.12,188.09,9.2537511]
[1760986400340,4.91788992,188.12,188.1,4.19363542]
[1760986400544,4.91788992,188.12,188.08,2.77]
[1760986400747,4.91788992,188.12,188.09,12.02310129]
[1760986400945,4.91788992,188.12,188.1,4.19334774]
[1760986401141,4.91788992,188.12,188.11,4.19334774]
[1760986402042,4.91788992,188.12,188.09,2.77]
[1760986402231,4.91788992,188.12,188.1,4.24461385]
[1760986402434,4.91788992,188.12,188.11,4.24446197]
[1760986402632,2.86,188.12,188.11,4.24446197]
[1760986407650,7.7131,188.13,188.11,4.24446197]
[1760986407844,7.7131,188.13,188.12,4.24446197]
[1760986408340,2.93,188.13,188.12,4.24446197]
[1760986408547,38.3326,188.15,188.12,4.24446197]
[1760986408742,7.7126,188.15,188.1,2.82]
[1760986408942,38.3326,188.15,188.11,7.06723926]
[1760986409148,2.93,188.14,188.12,4.24723926]
[1760986409445,4.7821,188.17,188.14,2.82]
[1760986409846,7.7121,188.17,188.14,2.82]
[1760986410246,2.93,188.16,188.14,2.82]
[1760986411150,2.93,188.16,188.1,14.60602025]
[1760986411447,2.93,188.16,188.12,2.82]
[1760986411637,2.93,188.16,188.13,4.24788136]
[1760986411843,2.93,188.16,188.14,4.24788136]
[1760986412144,2.93,188.16,188.12,2.82]
[1760986412340,2.93,188.16,188.13,4.24821417]
[1760986412541,2.93,188.16,188.14,4.24821417]
[1760986412743,2.93,188.16,188.12,2.82]
[1760986413050,4.7821,188.17,188.14,2.82]
[1760986413252,7.7121,188.17,188.15,4.24802117]
[1760986413448,7.7121,188.17,188.14,2.82]
[1760986413644,7.7121,188.17,188.15,4.24789354]
[1760986413852,7.7121,188.17,188.14,2.82]
[1760986414046,7.7121,188.17,188.15,4.24848338]
[1760986414243,7.7121,188.17,188.14,2.82]
[1760986414450,7.7121,188.17,188.15,4.24913507]
[1760986414649,7.7121,188.17,188.14,2.82]
[1760986414650,7.7121,188.17,188.16,4.24913507]